bitfinex-derivatives/quotes_BTCF0:USTF0_20241218
["timestamp","ask_amount","ask_price","bid_price","bid_amount"]
[1734497096757,0.06968258,104010.0,103990.0,0.47990459]
[1734497096963,0.06968258,104010.0,104000.0,0.0657]
[1734497096964,0.06892258,104010.0,104000.0,0.0657]
[1734497097156,0.02084458,104010.0,104000.0,0.474579]
[1734497097568,0.13994017,104010.0,104000.0,0.4265]
[1734497098661,0.13994017,104010.0,104000.0,0.0657]
[1734497100569,0.50074017,104010.0,104000.0,0.0657]
[1734497100761,0.13994017,104010.0,104000.0,0.0657]
[1734497102164,0.50074017,104010.0,104000.0,0.0657]
[1734497102666,0.048079,104000.0,103980.0,0.471087]
[1734497102862,0.47990459,103990.0,103980.0,0.0639]
[1734497103366,0.11910459,103990.0,103980.0,0.0639]
[1734497103771,0.048083,103990.0,103980.0,0.0639]
[1734497103962,0.54430259,104000.0,103980.0,0.0639]
[1734497104163,0.3608,103990.0,103980.0,0.0639]
[1734497104367,0.54430259,104000.0,103980.0,0.0639]
[1734497104573,0.47990459,103990.0,103980.0,0.0639]
[1734497104876,0.47990459,103990.0,103970.0,0.063]
[1734497105066,0.47990459,103990.0,103970.0,0.1252]
[1734497105661,0.048088,103980.0,103970.0,0.1252]
[1734497105862,0.55093118,103980.0,103960.0,0.111096]
[1734497106168,0.11911459,103970.0,103950.0,0.53784397]
[1734497106378,0.07102159,103960.0,103950.0,0.53784397]
[1734497106560,0.07102159,103960.0,103950.0,0.12894297]
[1734497106873,0.11911859,103960.0,103950.0,0.12894297]
[1734497107265,0.11911859,103960.0,103950.0,0.06364297]
[1734497107668,0.47991859,103960.0,103950.0,0.00144297]
[1734497108375,0.048105,103950.0,103930.0,0.4902]
[1734497108576,0.07102159,103940.0,103930.0,0.0631]
[1734497108763,0.47992859,103940.0,103930.0,0.0005]
[1734497108975,0.54430864,103940.0,103930.0,0.0005]
[1734497109369,0.048114,103930.0,103910.0,0.0675]
[1734497109670,0.07102159,103920.0,103910.0,0.0675]
[1734497109895,0.07102159,103930.0,103910.0,0.47642]
[1734497110169,0.07102159,103930.0,103910.0,0.476419]
[1734497110373,0.07102159,103920.0,103910.0,0.476419]
[1734497110573,0.07102159,103920.0,103910.0,0.115619]
[1734497110766,0.07102159,103930.0,103910.0,0.476419]
[1734497110964,0.07102159,103920.0,103910.0,0.476419]
[1734497111166,0.07102159,103920.0,103910.0,0.0675]
[1734497111569,0.048113,103930.0,103910.0,0.47642]
[1734497111770,0.43336039,103940.0,103920.0,0.048114]
[1734497112072,0.44008198,103940.0,103920.0,0.048114]
[1734497112377,0.47993459,103930.0,103910.0,0.0675]
[1734497112572,0.07102159,103920.0,103910.0,0.0675]
[1734497112775,0.048117,103920.0,103900.0,0.4608]
[1734497113083,0.07102159,103910.0,103900.0,0.4608]
[1734497113277,0.07102159,103910.0,103900.0,0.1]
[1734497113278,0.47994159,103910.0,103900.0,0.1]
[1734497113592,0.3608,103920.0,103900.0,0.508925]
[1734497113880,0.43182159,103920.0,103900.0,0.148125]
[1734497114070,0.3608,103930.0,103910.0,0.04812]
[1734497114271,0.3608,103930.0,103920.0,0.0005]
[1734497114472,0.3608,103930.0,103920.0,0.0646]
[1734497114879,0.48818898,103940.0,103920.0,0.0646]
[1734497115275,0.48818898,103940.0,103920.0,0.0641]
[1734497115475,0.48818898,103940.0,103920.0,0.112216]
[1734497115871,0.36088005,103940.0,103920.0,0.112216]
[1734497116080,0.36088005,103940.0,103920.0,0.176616]
[1734497116276,0.38053278,103940.0,103920.0,0.177116]
[1734497116471,0.36088005,103940.0,103930.0,0.048111]
[1734497116673,8.005e-05,103940.0,103930.0,0.408911]
[1734497116872,8.005e-05,103940.0,103930.0,0.048111]
[1734497117099,8.005e-05,103940.0,103920.0,0.4898]
[1734497117273,0.47993259,103930.0,103910.0,0.0641]
[1734497117468,0.11913859,103920.0,103900.0,0.5903]
[1734497117687,0.47993859,103920.0,103900.0,0.5903]
[1734497118477,0.47993859,103920.0,103910.0,0.0005]
[1734497118876,0.11913259,103930.0,103910.0,0.3613]
[1734497119071,0.47993259,103930.0,103910.0,0.0005]
[1734497119275,0.47993259,103930.0,103900.0,0.638424]
[1734497119472,0.3608,103930.0,103910.0,0.3608]
[1734497119784,0.3608,103930.0,103910.0,0.40892]
[1734497120577,0.8444595,103940.0,103910.0,0.40892]
[1734497120782,0.40346705,103940.0,103920.0,0.3608]
[1734497121081,0.40898705,103940.0,103910.0,0.47994159]
[1734497121276,0.40898705,103940.0,103920.0,0.3608]
[1734497121874,0.048116,103920.0,103910.0,0.3608]
[1734497122085,0.04812,103910.0,103900.0,0.594]
[1734497122281,0.04812,103910.0,103900.0,0.5945]
[1734497122673,0.4907,103930.0,103900.0,0.281825]
[1734497122880,0.538812,103930.0,103900.0,0.74927244]
[1734497123180,0.475412,103930.0,103910.0,0.3608]
[1734497123576,0.06398005,103940.0,103910.0,0.51556544]
[1734497123577,0.36088005,103940.0,103910.0,0.51556544]
[1734497123773,8.005e-05,103940.0,103920.0,0.51556244]
[1734497123984,8.005e-05,103940.0,103920.0,0.472115]
[1734497124390,8.005e-05,103940.0,103930.0,0.53624744]
[1734497124591,8.005e-05,103940.0,103930.0,0.65105844]
[1734497125089,8.005e-05,103940.0,103930.0,0.544411]
[1734497125687,8.005e-05,103940.0,103930.0,0.65105844]
[1734497125874,8.005e-05,103940.0,103930.0,0.544411]
[1734497127183,8.005e-05,103940.0,103930.0,0.65105844]
[1734497127589,0.048098,103960.0,103940.0,0.048103]
[1734497127890,0.048098,103960.0,103950.0,0.3608]
[1734497128085,0.00144374,103970.0,103950.0,0.4269]
[1734497128291,0.04953774,103970.0,103960.0,0.1295]
[1734497128587,0.00144374,103970.0,103960.0,0.49038005]
[1734497128890,0.00144374,103970.0,103960.0,0.64512449]
[1734497129088,0.00144374,103970.0,103960.0,0.53847705]
[1734497129586,0.0482038,103980.0,103960.0,0.64512449]
[1734497130182,0.0482038,103980.0,103960.0,0.53847705]
[1734497132189,0.0482038,103980.0,103960.0,0.49038005]
[1734497132190,0.048093,103970.0,103960.0,0.49038005]
[1734497132381,0.048093,103970.0,103960.0,0.42538005]
[1734497133189,0.048093,103970.0,103960.0,0.53202749]
[1734497133591,0.4090038,103980.0,103960.0,0.58012349]
[1734497133793,0.4090038,103980.0,103970.0,0.0682]
[1734497134183,0.0482038,103980.0,103970.0,0.0682]
[1734497135283,0.0482038,103980.0,103970.0,0.429]
[1734497137295,0.0482038,103980.0,103970.0,0.0682]
[1734497137484,0.0482038,103980.0,103970.0,0.429]
[1734497137684,0.0482038,103980.0,103970.0,0.0682]
[1734497138584,0.0482038,103980.0,103970.0,0.429]
[1734497139701,0.0482038,103980.0,103960.0,0.47347605]
[1734497139899,0.0482038,103980.0,103960.0,0.53637605]
[1734497141790,0.0482038,103980.0,103970.0,0.3608]
[1734497143213,0.0482038,103980.0,103970.0,0.408893]
[1734497143589,0.0001148,103980.0,103970.0,0.51554044]
[1734497144091,0.0001148,103980.0,103970.0,0.47987526]
[1734497145095,0.0001148,103980.0,103970.0,0.77987526]
[1734497145286,0.0001148,103980.0,103970.0,0.47987526]
[1734497146990,0.0001148,103980.0,103970.0,0.77987526]
[1734497147195,0.0001148,103980.0,103970.0,0.47987526]
[1734497149388,0.00088,104000.0,103970.0,0.85931182]
[1734497149689,0.00088,104000.0,103990.0,0.47986526]
[1734497150092,0.00088,104000.0,103990.0,0.60786526]
[1734497150589,0.00088,104000.0,103990.0,0.96866526]
[1734497150792,0.00144302,104010.0,104000.0,0.048079]
[1734497150995,0.00144302,104010.0,104000.0,0.3608]
[1734497151202,0.04951702,104010.0,104000.0,0.3608]
[1734497151392,0.05001702,104010.0,104000.0,0.3608]
[1734497152102,0.05001702,104010.0,104000.0,0.408879]
[1734497152302,0.04951702,104010.0,104000.0,0.408879]
[1734497153992,0.00144302,104010.0,104000.0,0.408879]
[1734497154995,0.11437615,104020.0,104000.0,0.40895584]
[1734497155299,0.06630615,104020.0,104010.0,0.048074]
[1734497155886,0.00010615,104020.0,104010.0,0.048074]
[1734497156097,0.00010615,104020.0,104010.0,0.47985626]
[1734497156494,0.00010615,104020.0,104010.0,0.408874]
[1734497156893,0.00010615,104020.0,104010.0,0.47985626]
[1734497157697,0.00010615,104020.0,104010.0,0.408874]
[1734497158207,0.00010615,104020.0,104010.0,0.47985626]
[1734497160504,0.00010615,104020.0,104010.0,0.408874]
[1734497161295,0.04817615,104020.0,104010.0,0.408874]
[1734497162324,0.07108841,104020.0,104000.0,0.36087684]
[1734497162604,0.048074,104010.0,104000.0,0.36087684]
[1734497162808,0.048074,104010.0,104000.0,7.684e-05]
[1734497165700,0.42680615,104020.0,104000.0,0.4318591]
[1734497165903,0.06600615,104020.0,104010.0,0.048074]
[1734497167104,0.06600615,104020.0,104010.0,0.47985626]
[1734497167105,0.00010615,104020.0,104010.0,0.47985626]
[1734497167406,0.00010615,104020.0,104010.0,0.408874]
[1734497168492,0.04817615,104020.0,104010.0,0.408874]
[1734497168692,0.40897615,104020.0,104000.0,0.40895484]
[1734497168898,0.04817615,104020.0,104000.0,0.40895484]
[1734497170099,0.40897615,104020.0,104000.0,0.40895484]
[1734497170620,0.04817615,104020.0,104010.0,0.3608]
[1734497171003,0.04817615,104020.0,104000.0,0.40895484]
[1734497171303,0.04817615,104020.0,104000.0,0.4799371]
[1734497172108,0.04817615,104020.0,104000.0,0.40895484]
[1734497172794,0.00010615,104020.0,104010.0,0.47985626]
[1734497178417,0.048074,104010.0,104000.0,0.36087684]
[1734497178618,0.048074,104010.0,104000.0,7.684e-05]
[1734497178820,0.114974,104010.0,104000.0,7.684e-05]
[1734497183315,0.048083,103990.0,103980.0,0.93576383]
[1734497183510,0.42580072,104000.0,103970.0,1.18843613]
[1734497183713,0.048083,103990.0,103970.0,0.6134723]
[1734497184109,0.048083,103990.0,103970.0,1.06056383]
[1734497184110,0.11907026,103990.0,103970.0,1.06056383]
[1734497184422,0.11907026,103990.0,103980.0,0.00011801]
[1734497184620,0.048088,103990.0,103980.0,0.00011801]
[1734497185708,0.408888,103990.0,103980.0,0.00011801]
[1734497187013,0.4175271,103990.0,103980.0,0.00011801]
[1734497189343,0.48850936,103990.0,103980.0,0.00011801]
[1734497189918,0.4175271,103990.0,103980.0,0.00011801]
[1734497190830,0.0567271,103990.0,103980.0,0.00011801]
[1734497191029,0.4175271,103990.0,103980.0,0.00011801]
[1734497191421,0.48850936,103990.0,103980.0,0.00011801]
[1734497191817,0.55070936,103990.0,103980.0,0.00011801]
[1734497192332,0.048093,103970.0,103960.0,0.3608]
[1734497197021,0.112388,103980.0,103960.0,0.47987926]
[1734497197227,0.112388,103980.0,103960.0,0.532297]
[1734497197635,0.18337026,103980.0,103960.0,0.532297]
[1734497198135,0.18337026,103980.0,103960.0,0.4842]
[1734497198929,0.18337026,103980.0,103960.0,0.3608]
[1734497200222,0.18337026,103980.0,103950.0,0.50138762]
[1734497200223,0.11907526,103970.0,103950.0,0.50138762]
[1734497200623,0.47987526,103970.0,103950.0,0.50138762]
[1734497200826,0.048093,103970.0,103950.0,0.54948862]
[1734497201231,0.11907526,103970.0,103950.0,0.54948862]
[1734497201923,0.07098226,103960.0,103950.0,0.54948862]
[1734497202232,0.06499841,103960.0,103950.0,0.3608]
[1734497203242,0.06499841,103960.0,103940.0,0.53594874]
[1734497203732,0.07098226,103950.0,103940.0,0.12704274]
[1734497204034,0.11908426,103950.0,103930.0,0.41774366]
[1734497204237,0.11908426,103950.0,103930.0,0.48354366]
[1734497204238,0.07098226,103940.0,103930.0,0.48354366]
[1734497204437,0.17988426,103950.0,103930.0,0.48354366]
[1734497204634,0.43188429,103940.0,103920.0,0.0005]
[1734497204835,0.11909326,103930.0,103920.0,0.0005]
[1734497205438,0.11909326,103930.0,103910.0,0.4266]
[1734497205827,0.11909826,103920.0,103910.0,0.3608]
[1734497206029,0.11909826,103920.0,103900.0,0.4608]
[1734497206030,0.47989826,103920.0,103900.0,0.4608]
[1734497206333,0.11910226,103910.0,103900.0,0.4608]
[1734497207246,1.20612552,103910.0,103860.0,0.05980636]
[1734497207426,0.47992126,103870.0,103860.0,0.05980636]
[1734497207628,0.47992126,103870.0,103860.0,0.04060709]
[1734497208242,0.47992126,103870.0,103850.0,0.10600709]
[1734497208425,0.3608,103870.0,103850.0,0.4262]
[1734497208636,0.43178226,103870.0,103850.0,0.46680709]
[1734497208837,0.43178226,103870.0,103850.0,0.87515621]
[1734497209232,0.07098226,103860.0,103850.0,0.87515621]
[1734497209459,0.43178226,103870.0,103860.0,0.0005]
[1734497210735,0.47992126,103870.0,103860.0,0.0005]
[1734497212636,0.84032126,103870.0,103860.0,0.0005]
[1734497212835,0.84032126,103870.0,103830.0,0.36224446]
[1734497212836,1.16323643,103870.0,103830.0,0.36224446]
[1734497213137,0.11913526,103840.0,103830.0,0.36224446]
[1734497213538,0.11913526,103840.0,103830.0,0.00144446]
[1734497214129,0.11913526,103840.0,103820.0,0.3608]
[1734497214644,0.47993526,103840.0,103820.0,0.3608]
[1734497214834,0.07098226,103830.0,103820.0,0.3608]
[1734497215231,0.11914026,103830.0,103820.0,0.3608]
[1734497215435,0.048162,103820.0,103800.0,0.4608]
[1734497215635,0.11914926,103810.0,103800.0,0.1]
[1734497216730,0.55093152,103810.0,103800.0,0.1]
[1734497216931,1.20641152,103810.0,103800.0,0.1]
[1734497217126,1.20641152,103810.0,103780.0,0.3608]
[1734497217346,0.11924944,103790.0,103780.0,0.3608]
[1734497217532,9.118e-05,103790.0,103780.0,0.3608]
[1734497217934,9.118e-05,103790.0,103780.0,0.408981]
[1734497218141,9.118e-05,103790.0,103780.0,0.471881]
[1734497218340,0.07107344,103790.0,103780.0,0.471881]
[1734497218552,9.118e-05,103790.0,103780.0,0.471881]
[1734497219029,0.07107344,103790.0,103780.0,0.471881]
[1734497219234,0.07107344,103790.0,103780.0,0.4237]
[1734497220442,0.11924944,103790.0,103780.0,0.3608]
[1734497220635,0.11924944,103790.0,103750.0,0.4104366]
[1734497220636,0.048184,103780.0,103750.0,0.4104366]
[1734497220841,0.07098226,103760.0,103750.0,0.0496366]
[1734497221040,0.43178226,103770.0,103750.0,0.4104366]
[1734497221344,0.3608,103780.0,103760.0,0.048188]
[1734497221532,0.43178226,103780.0,103760.0,0.048188]
[1734497221736,0.43178226,103780.0,103750.0,0.4104406]
[1734497221737,0.07098226,103770.0,103750.0,0.4104406]
[1734497221934,0.07098226,103760.0,103750.0,0.0496406]
[1734497222135,0.47996826,103770.0,103750.0,0.0496406]
[1734497223840,0.048186,103770.0,103750.0,0.408995]
[1734497224077,0.47996826,103770.0,103750.0,0.048195]
[1734497224544,0.11917326,103760.0,103740.0,0.601299]
[1734497225542,0.11917326,103760.0,103750.0,0.0005]
[1734497225944,0.048191,103760.0,103750.0,0.0005]
[1734497228550,0.11917326,103760.0,103750.0,0.0005]
[1734497228742,0.47997326,103760.0,103750.0,0.0005]
[1734497231447,0.3608,103760.0,103750.0,0.0005]
[1734497232554,0.3608,103760.0,103740.0,0.240499]
[1734497233044,0.47997326,103760.0,103740.0,0.240499]
[1734497233547,0.47997326,103760.0,103740.0,0.240999]
[1734497234449,0.47997326,103760.0,103740.0,0.240499]
[1734497235544,0.47997326,103760.0,103740.0,0.46662582]
[1734497235752,0.3608,103760.0,103750.0,0.048195]
[1734497236049,0.07098226,103760.0,103750.0,0.3608]
[1734497236255,0.07098226,103760.0,103740.0,0.46662582]
[1734497236452,0.11917226,103760.0,103740.0,0.79124786]
[1734497236652,0.42578378,103760.0,103740.0,0.79124786]
[1734497236848,0.47997726,103750.0,103740.0,0.35332682]
[1734497237056,0.47997726,103750.0,103740.0,0.04060709]
[1734497237057,0.43178226,103750.0,103740.0,0.04060709]
[1734497237243,0.47997726,103750.0,103730.0,0.26673391]
[1734497237541,0.408995,103750.0,103730.0,0.95975286]
[1734497237749,0.53937226,103760.0,103740.0,0.22612682]
[1734497237951,0.11917726,103750.0,103740.0,0.22612682]
[1734497238846,0.468391,103760.0,103740.0,0.048198]
[1734497239051,0.49218226,103770.0,103740.0,0.048198]
[1734497239052,0.3608,103770.0,103750.0,0.43178226]
[1734497239246,0.07098226,103770.0,103750.0,0.52070709]
[1734497239444,0.07098226,103760.0,103750.0,0.528294]
[1734497239650,0.47997226,103760.0,103740.0,0.37493191]
[1734497239849,0.07098226,103750.0,103740.0,0.04060709]
[1734497240148,0.3608,103760.0,103740.0,0.08880609]
[1734497240651,0.3608,103760.0,103740.0,0.31493291]
[1734497240852,0.3608,103760.0,103750.0,0.048195]
[1734497241063,0.3608,103770.0,103760.0,0.04819]
[1734497241253,0.38149799,103790.0,103770.0,0.048183]
[1734497241254,0.00153718,103790.0,103770.0,0.048183]
[1734497241442,0.07098226,103780.0,103770.0,0.40140709]
[1734497241646,0.47996326,103780.0,103770.0,0.04060709]
[1734497241948,0.048181,103780.0,103770.0,0.04060709]
[1734497242155,0.11916326,103780.0,103770.0,0.04060709]
[1734497242345,0.43331944,103790.0,103770.0,0.04060709]
[1734497242551,0.48149544,103790.0,103770.0,0.31491891]
[1734497242757,0.48149544,103790.0,103770.0,0.27431182]
[1734497243270,0.41051318,103790.0,103770.0,0.67571891]
[1734497243460,0.41051318,103790.0,103770.0,0.95973386]
[1734497243648,0.00153718,103790.0,103780.0,0.048181]
[1734497243861,0.60399981,103820.0,103800.0,0.048171]
[1734497244057,0.467663,103820.0,103800.0,0.048171]
[1734497244264,0.00144535,103830.0,103810.0,0.47994926]
[1734497244450,0.00194535,103830.0,103810.0,0.76396421]
[1734497244674,0.00194535,103830.0,103820.0,0.048162]
[1734497244954,0.0005,103830.0,103820.0,0.76404386]
[1734497245147,0.00048774,103850.0,103830.0,0.048155]
[1734497245353,0.00048774,103850.0,103840.0,0.3608]
[1734497245547,0.00048774,103850.0,103840.0,0.408953]
[1734497246471,0.00048774,103850.0,103840.0,0.3608]
[1734497246658,0.048154,103840.0,103830.0,0.64758816]
[1734497246968,0.048158,103830.0,103820.0,0.00108465]
[1734497247158,0.11914026,103830.0,103820.0,0.00108465]
[1734497247354,0.11913626,103840.0,103820.0,0.04924665]
[1734497247557,0.0005,103830.0,103820.0,0.48102891]
[1734497247854,0.0005,103830.0,103820.0,0.48002891]
[1734497248063,0.0005,103830.0,103820.0,0.76681707]
[1734497248367,0.0005,103830.0,103820.0,0.82401707]
[1734497248668,0.04822674,103850.0,103820.0,0.82401707]
[1734497249050,0.04822674,103850.0,103820.0,0.82501707]
[1734497249253,0.119209,103850.0,103820.0,0.53922891]
[1734497249452,0.11964026,103830.0,103820.0,0.42008465]
[1734497249750,0.11964026,103830.0,103820.0,0.00208465]
[1734497250271,0.048658,103830.0,103820.0,0.00208465]
[1734497250560,0.048158,103830.0,103820.0,0.00208465]
[1734497250760,0.47994026,103830.0,103820.0,0.00208465]
[1734497251063,0.47993526,103840.0,103820.0,0.00208465]
[1734497251457,0.48043526,103840.0,103820.0,0.00208465]
[1734497252256,0.48043526,103840.0,103820.0,0.00108465]
[1734497252463,0.47993526,103840.0,103820.0,0.00208465]
[1734497252956,0.47993526,103840.0,103820.0,0.00108465]
[1734497253169,0.47993526,103840.0,103820.0,0.00208465]
[1734497253562,0.48043526,103840.0,103820.0,0.00208465]
[1734497253952,0.409453,103840.0,103820.0,0.05024465]
[1734497254572,0.3613,103840.0,103820.0,0.05024465]
[1734497255561,0.3608,103840.0,103820.0,0.41104465]
[1734497255984,0.36989507,103850.0,103830.0,0.048158]
[1734497256168,7.774e-05,103850.0,103840.0,0.11913526]
[1734497256469,0.00057774,103850.0,103840.0,0.048153]
[1734497256661,0.00057774,103850.0,103840.0,0.408953]
[1734497256862,0.00057774,103850.0,103840.0,0.47993526]
[1734497257364,0.00057774,103850.0,103840.0,0.53593526]
[1734497257554,7.774e-05,103850.0,103840.0,0.53593526]
[1734497258067,7.774e-05,103850.0,103840.0,0.53693526]
[1734497258253,7.774e-05,103850.0,103840.0,0.001]
[1734497258457,0.119208,103850.0,103840.0,0.001]
[1734497258654,0.480008,103850.0,103840.0,0.001]
[1734497258856,0.480008,103850.0,103840.0,0.002]
[1734497258857,0.536508,103850.0,103840.0,0.002]
[1734497259963,0.57234257,103850.0,103840.0,0.002]
[1734497260873,0.93314257,103850.0,103840.0,0.002]
[1734497262359,0.05657774,103850.0,103840.0,0.001]
[1734497262558,0.05657774,103850.0,103840.0,0.050153]
[1734497262559,7.774e-05,103850.0,103840.0,0.050153]
[1734497262762,0.10689457,103850.0,103840.0,0.002]
[1734497263062,0.10689457,103850.0,103840.0,0.001]
[1734497263063,7.774e-05,103850.0,103840.0,0.001]
[1734497263366,7.774e-05,103850.0,103840.0,0.050153]
[1734497264166,0.46769457,103850.0,103840.0,0.002]
[1734497264364,0.51584257,103850.0,103840.0,0.002]
[1734497264862,0.15504257,103850.0,103840.0,0.002]
[1734497265068,0.51584257,103850.0,103840.0,0.002]
[1734497265462,0.46769457,103850.0,103840.0,0.050153]
[1734497265659,0.51584257,103850.0,103840.0,0.001]
[1734497265971,0.51584257,103850.0,103840.0,0.002]
[1734497266666,0.57544257,103850.0,103840.0,0.002]
[1734497268074,0.87544257,103850.0,103840.0,0.002]
[1734497268664,0.87544257,103850.0,103840.0,0.001]
[1734497268874,0.57544257,103850.0,103840.0,0.002]
[1734497269391,0.57544257,103850.0,103840.0,0.2306178]
[1734497270269,0.57544257,103850.0,103840.0,0.51740596]
[1734497271268,0.41803433,103850.0,103840.0,0.34410265]
[1734497271459,0.52485116,103850.0,103840.0,0.34410265]
[1734497271868,0.41803433,103850.0,103840.0,0.34410265]
[1734497272067,0.52485116,103850.0,103840.0,0.34410265]
[1734497272269,0.52485116,103850.0,103840.0,0.40280821]
[1734497272969,0.52485116,103850.0,103840.0,0.44310248]
[1734497273165,0.47070661,103850.0,103840.0,0.04229427]
[1734497273371,0.47070661,103850.0,103840.0,0.5003608]
[1734497273968,0.47070661,103850.0,103840.0,0.86295344]
[1734497274169,0.47070661,103850.0,103840.0,0.40488691]
[1734497274475,0.52477342,103850.0,103840.0,0.40488691]
[1734497274974,0.41795659,103850.0,103840.0,0.40488691]
[1734497275279,0.48721058,103860.0,103840.0,0.40488691]
[1734497275280,0.42853875,103860.0,103840.0,0.40488691]
[1734497275577,0.3608,103850.0,103840.0,0.40488691]
[1734497275882,0.51576483,103850.0,103840.0,0.86295344]
[1734497276072,0.51576483,103850.0,103840.0,0.40488691]
[1734497276465,0.51576483,103850.0,103840.0,0.34753419]
[1734497276873,0.92258166,103850.0,103840.0,0.12932195]
[1734497277174,0.048158,103830.0,103820.0,0.04129993]
[1734497277380,0.87657483,103830.0,103820.0,0.04077993]
[1734497277599,0.87657483,103830.0,103820.0,8.465e-05]
[1734497278567,0.769758,103830.0,103820.0,0.00108465]
[1734497278776,0.87657483,103830.0,103820.0,0.00108465]
[1734497279482,0.87657483,103830.0,103820.0,0.00208465]
[1734497279667,0.769758,103830.0,103820.0,0.00208465]
[1734497280072,0.769758,103830.0,103820.0,0.04277993]
[1734497280477,0.769758,103830.0,103820.0,0.09767993]
[1734497280677,0.769758,103830.0,103820.0,0.11278465]
[1734497280884,0.408953,103840.0,103820.0,0.16094665]
[1734497281079,0.408953,103840.0,103830.0,0.0594]
[1734497281285,0.048158,103830.0,103820.0,0.11278465]
[1734497281578,0.15497483,103830.0,103820.0,0.11278465]
[1734497281767,0.51577483,103830.0,103820.0,0.04168369]
[1734497281966,0.51577483,103830.0,103820.0,0.04268369]
[1734497282582,0.57217483,103830.0,103820.0,0.04168369]
[1734497282771,0.57217483,103830.0,103820.0,0.04268369]
[1734497283280,0.87217483,103830.0,103820.0,0.04168369]
[1734497283794,0.87217483,103830.0,103820.0,0.04268369]
[1734497284377,0.57217483,103830.0,103820.0,0.04268369]
[1734497284782,0.408958,103830.0,103820.0,0.04268369]
[1734497284983,0.408958,103830.0,103820.0,0.00208465]
[1734497286189,0.408958,103830.0,103820.0,0.05888465]
[1734497286687,0.46761683,103840.0,103820.0,0.15338369]
[1734497286688,0.3608,103840.0,103820.0,0.15338369]
[1734497286877,0.3608,103840.0,103830.0,0.0589]
[1734497287181,0.51576983,103840.0,103830.0,0.04059904]
[1734497287485,0.048158,103830.0,103820.0,0.00208465]
[1734497287672,0.408958,103830.0,103820.0,0.00208465]
[1734497287876,0.51577483,103830.0,103820.0,0.00108465]
[1734497288077,0.51577483,103830.0,103820.0,0.00208465]
[1734497288373,0.51577483,103830.0,103820.0,0.04169407]
[1734497288572,0.51577483,103830.0,103820.0,0.00108465]
[1734497288980,0.81577483,103830.0,103790.0,0.09682543]
[1734497289180,0.51578783,103800.0,103790.0,0.0556]
[1734497289486,0.048176,103790.0,103780.0,0.0576]
[1734497289680,0.51579283,103790.0,103780.0,0.0576]
[1734497289881,0.408976,103790.0,103780.0,0.05768427]
[1734497290284,0.408972,103800.0,103780.0,0.05768427]
[1734497290471,0.3608,103800.0,103780.0,0.76666227]
[1734497290676,0.3608,103800.0,103780.0,0.76766227]
[1734497291185,0.3608,103800.0,103790.0,0.049176]
[1734497291384,0.764683,103820.0,103790.0,0.409976]
[1734497291681,0.403883,103820.0,103800.0,0.1137]
[1734497291884,0.36224564,103830.0,103810.0,0.105766]
[1734497292184,0.048167,103810.0,103800.0,0.1137]
[1734497292383,0.048176,103790.0,103780.0,0.05938427]
[1734497292577,0.51579283,103790.0,103780.0,0.00108427]
[1734497292780,0.048181,103780.0,103770.0,0.01144519]
[1734497292978,0.408981,103780.0,103770.0,0.01]
[1734497294191,0.51579783,103780.0,103770.0,0.01]
[1734497294378,0.51579783,103780.0,103770.0,0.011]
[1734497294584,0.3608,103780.0,103770.0,0.011]
[1734497294885,0.3608,103780.0,103770.0,0.012]
[1734497295295,0.408981,103780.0,103770.0,0.012]
[1734497295479,0.51579783,103780.0,103770.0,0.012]
[1734497296890,0.35480053,103780.0,103770.0,0.012]
[1734497297280,0.46161736,103780.0,103770.0,0.012]
[1734497299289,0.46161736,103780.0,103770.0,0.05304638]
[1734497299488,0.46161736,103780.0,103770.0,0.012]
[1734497300786,0.76161736,103780.0,103770.0,0.012]
[1734497301488,0.46161736,103780.0,103770.0,0.012]
[1734497302286,0.35480053,103780.0,103770.0,0.012]
[1734497302492,0.46161736,103780.0,103770.0,0.012]
[1734497302681,0.35480053,103780.0,103770.0,0.012]
[1734497302995,0.52520678,103790.0,103770.0,0.05304638]
[1734497303187,0.41838995,103790.0,103780.0,0.17]
[1734497304296,0.4090789,103790.0,103780.0,0.17]
[1734497304482,0.3609029,103790.0,103780.0,0.17]
[1734497304689,0.3609029,103790.0,103780.0,0.5308]
[1734497304690,0.0001029,103790.0,103780.0,0.5308]
[1734497305087,0.0001029,103790.0,103780.0,0.57898]
[1734497305387,0.408966,103810.0,103790.0,0.048175]
[1734497305587,0.048166,103810.0,103790.0,0.408975]
[1734497305998,0.43772207,103820.0,103790.0,0.408975]
[1734497306291,0.41813373,103820.0,103800.0,9.745e-05]
[1734497307797,0.52495056,103820.0,103800.0,9.745e-05]
[1734497307983,0.15498183,103810.0,103800.0,0.00109745]
[1734497308195,0.048165,103810.0,103800.0,0.00109745]
[1734497308990,0.36997373,103820.0,103800.0,0.00109745]
[1734497309194,0.41813373,103820.0,103800.0,0.00109745]
[1734497310095,0.00917373,103820.0,103800.0,0.41006345]
[1734497310396,0.00917373,103820.0,103810.0,0.526062]
[1734497310597,8.848e-05,103820.0,103810.0,0.582962]
[1734497311587,0.00144564,103830.0,103820.0,0.048157]
[1734497311788,0.04959964,103830.0,103810.0,0.5348]
[1734497312291,0.15641547,103830.0,103810.0,0.5348]
[1734497312593,0.04959864,103830.0,103810.0,0.5358]
[1734497313384,0.04959864,103830.0,103810.0,0.583961]
[1734497313788,0.00144564,103830.0,103820.0,0.048157]
[1734497313997,0.00144564,103830.0,103820.0,0.408957]
[1734497314186,0.00048363,103840.0,103820.0,0.408957]
[1734497314591,0.00048363,103840.0,103830.0,0.3608]
[1734497314803,0.00048363,103840.0,103820.0,0.408957]
[1734497314998,0.04863163,103840.0,103820.0,0.408957]
[1734497315795,0.04863163,103840.0,103820.0,0.409957]
[1734497318090,0.04863163,103840.0,103820.0,0.709957]
[1734497318298,0.00048363,103840.0,103830.0,0.408953]
[1734497319401,0.00048363,103840.0,103830.0,0.409953]
[1734497321701,0.37013518,103860.0,103830.0,0.76861683]
[1734497321904,0.41037612,103880.0,103850.0,0.51575783]
[1734497322101,0.04957612,103880.0,103860.0,0.3608]
[1734497322400,0.04957612,103880.0,103870.0,0.0585]
[1734497322806,0.04957612,103880.0,103870.0,0.05861586]
[1734497322992,0.04957612,103880.0,103870.0,0.11361586]
[1734497323903,0.00144512,103880.0,103870.0,0.58123269]
[1734497324100,0.00144512,103880.0,103870.0,0.62936669]
[1734497324416,8.198e-05,103890.0,103880.0,0.04813]
[1734497324603,8.198e-05,103890.0,103880.0,0.51574683]
[1734497324801,0.04820698,103890.0,103870.0,0.52254986]
[1734497324996,0.04820698,103890.0,103870.0,0.52354986]
[1734497325208,0.40900698,103890.0,103870.0,0.52354986]